fUSD/lending_fUSD_20241030
["ID","MTS","AMOUNT","RATE_DAILY","PERIOD"]
[341028192,1730284234916,-1148.31,0.00034694,5]
[341028193,1730284234926,-500.0,0.00034694,5]
[341028194,1730284234936,-558.21,0.00034694,5]
[341028195,1730284235042,-500.0,0.00034694,5]
[341028196,1730284235052,-578.1,0.00034694,5]
[341028197,1730284235063,-242.31003491,0.00034694,5]
[341028198,1730284235072,-866.04,0.00034694,5]
[341028199,1730284235082,-500.0,0.00034694,5]
[341028200,1730284235092,-616.41623441,0.00034694,5]
[341028201,1730284235101,-500.0,0.00034694,5]
[341028202,1730284235111,-500.0,0.00034694,5]
[341028203,1730284235120,-500.0,0.00034694,5]
[341028204,1730284235130,-500.0,0.00034694,5]
[341028205,1730284235139,-500.0,0.00034694,5]
[341028206,1730284235149,-500.0,0.00034694,5]
[341028207,1730284235158,-500.0,0.00034694,5]
[341028208,1730284235167,-1014.71,0.00034694,5]
[341028209,1730284235177,-500.0,0.00034694,5]
[341028210,1730284235186,-200.521153,0.00034694,7]
[341028211,1730284235195,-503.83,0.00034694,5]
[341028212,1730284235205,-500.0,0.00034694,5]
[341028213,1730284235215,-500.0,0.00034694,5]
[341028214,1730284235228,-992.38,0.00034694,5]
[341028215,1730284235237,-2463.29,0.00034694,5]
[341028216,1730284235247,-500.0,0.00034694,5]
[341028217,1730284235256,-829.01,0.00034694,5]
[341028218,1730284235266,-1176.28,0.00034694,5]
[341028219,1730284235275,-500.0,0.00034694,5]
[341028220,1730284235284,-500.0,0.00034694,5]
[341028221,1730284235293,-500.0,0.00034694,5]
[341028222,1730284235303,-1410.72,0.00034694,5]
[341028223,1730284235312,-500.0,0.00034694,5]
[341028224,1730284235321,-500.0,0.00034694,5]
[341028225,1730284235331,-500.0,0.00034694,5]
[341028226,1730284235340,-1071.01,0.00034694,5]
[341028227,1730284235349,-1408.85,0.00034694,5]
[341028228,1730284235358,-500.0,0.00034694,5]
[341028229,1730284235367,-500.0,0.00034694,5]
[341028230,1730284235376,-500.0,0.00034695,5]
[341028231,1730284235386,-500.0,0.00034695,5]
[341028232,1730284235395,-500.0,0.00034695,5]
[341028233,1730284235404,-152.01032647,0.00034695,5]
[341028234,1730284235413,-544.09,0.00034695,5]
[341028235,1730284235422,-500.0,0.00034695,5]
[341028236,1730284235431,-500.0,0.00034695,5]
[341028237,1730284235440,-1153.08,0.00034695,5]
[341028238,1730284235450,-500.0,0.00034695,5]
[341028239,1730284235459,-500.0,0.00034695,5]
[341028240,1730284235468,-1250.02,0.00034695,5]
[341028241,1730284235478,-500.0,0.00034695,5]
[341028242,1730284235487,-500.0,0.00034695,5]
[341028243,1730284235500,-1603.68,0.00034695,5]
[341028244,1730284235509,-500.0,0.00034695,5]
[341028245,1730284235518,-500.0,0.00034695,5]
[341028246,1730284235527,-500.0,0.00034695,5]
[341028247,1730284235537,-500.0,0.00034695,5]
[341028248,1730284235546,-203.60258698,0.00034695,5]
[341028249,1730284235555,-500.0,0.00034695,5]
[341028250,1730284235565,-500.0,0.00034695,5]
[341028251,1730284235575,-500.0,0.00034695,5]
[341028252,1730284235585,-500.0,0.00034695,5]
[341028253,1730284235594,-842.81,0.00034695,5]
[341028254,1730284235604,-500.0,0.00034695,5]
[341028255,1730284235614,-500.0,0.00034695,5]
[341028256,1730284235623,-516.3,0.00034695,5]
[341028257,1730284235632,-500.0,0.00034695,5]
[341028258,1730284235642,-500.0,0.00034695,5]
[341028259,1730284235651,-696.3,0.00034695,5]
[341028260,1730284235661,-811.79,0.00034695,5]
[341028261,1730284235671,-500.0,0.00034695,5]
[341028262,1730284235680,-500.0,0.00034695,5]
[341028263,1730284235690,-500.0,0.00034695,5]
[341028264,1730284235699,-500.0,0.00034695,5]
[341028265,1730284235711,-500.0,0.00034695,5]
[341028266,1730284235721,-200.0,0.00034695,5]
[341028267,1730284235730,-500.0,0.00034695,5]
[341028268,1730284235741,-500.0,0.00034695,5]
[341028269,1730284235752,-500.0,0.00034695,5]
[341028270,1730284235761,-500.0,0.00034695,5]
[341028271,1730284235771,-333.10570445,0.00034695,5]
[341028272,1730284235781,-500.0,0.00034695,5]
[341028273,1730284235790,-500.0,0.00034695,5]
[341028274,1730284235799,-500.0,0.00034695,5]
[341028275,1730284235809,-500.0,0.00034695,5]
[341028276,1730284235819,-500.0,0.00034695,5]
[341028277,1730284235828,-301.42468851,0.00034695,5]
[341028278,1730284235838,-500.0,0.00034695,5]
[341028279,1730284235847,-500.0,0.00034695,5]
[341028280,1730284235857,-559.4887931,0.00034695,5]
[341028281,1730284235866,-500.0,0.00034695,5]
[341028282,1730284235876,-500.0,0.00034695,5]
[341028283,1730284235885,-500.0,0.00034695,5]
[341028284,1730284235894,-500.0,0.00034695,5]
[341028285,1730284235905,-500.0,0.00034695,5]
[341028286,1730284235915,-500.0,0.00034695,5]
[341028287,1730284235926,-500.0,0.00034695,5]
[341028288,1730284235937,-500.0,0.00034695,5]
[341028289,1730284235948,-637.39,0.00034695,5]
[341028290,1730284235958,-374.02351264,0.00034695,5]
[341028291,1730284235967,-500.0,0.00034695,5]
[341028292,1730284235977,-207.39275826,0.00034695,5]
[341028293,1730284235986,-500.0,0.00034695,5]
[341028294,1730284235995,-500.0,0.00034695,5]
[341028295,1730284236004,-500.0,0.00034695,5]
[341028296,1730284236013,-500.0,0.00034695,5]
[341028297,1730284236023,-500.0,0.00034695,5]
[341028298,1730284236032,-500.0,0.00034695,5]
[341028299,1730284236041,-500.0,0.00034695,5]
[341028300,1730284236050,-500.0,0.00034695,5]
[341028301,1730284236060,-526.39,0.00034695,5]
[341028302,1730284236071,-500.0,0.00034695,5]
[341028303,1730284236080,-500.0,0.00034695,5]
[341028304,1730284236089,-337.83867647,0.00034695,5]
[341028305,1730284236099,-680.49,0.00034695,5]
[341028306,1730284236108,-500.0,0.00034695,5]
[341028307,1730284236117,-500.0,0.00034695,5]
[341028308,1730284236127,-500.0,0.00034695,5]
[341028309,1730284236137,-500.0,0.00034695,5]
[341028310,1730284236146,-625.17,0.00034695,5]
[341028311,1730284236155,-500.0,0.00034695,5]
[341028312,1730284236165,-500.0,0.00034695,5]
[341028313,1730284236174,-500.0,0.00034695,5]
[341028314,1730284236184,-500.0,0.00034695,5]
[341028315,1730284236193,-500.0,0.00034695,5]
[341028316,1730284236202,-610.16596513,0.00034695,5]
[341028317,1730284236211,-500.0,0.00034695,5]
[341028318,1730284236222,-601.82193258,0.00034695,5]
[341028319,1730284236233,-500.0,0.00034695,5]
[341028320,1730284236243,-500.0,0.00034695,5]
[341028321,1730284236252,-500.0,0.00034695,5]
[341028322,1730284236261,-457.91645343,0.00034695,5]
[341028323,1730284236273,-579.99044964,0.00034695,5]
[341028324,1730284236282,-500.0,0.00034695,5]
[341028325,1730284236292,-500.0,0.00034695,5]
[341028326,1730284236302,-500.0,0.00034695,5]
[341028327,1730284236311,-500.0,0.00034695,5]
[341028328,1730284236320,-500.0,0.00034695,5]
[341028329,1730284236330,-500.0,0.00034695,5]
[341028330,1730284236339,-500.0,0.00034695,5]
[341028331,1730284236348,-500.0,0.00034695,5]
[341028332,1730284236357,-500.0,0.00034695,5]
[341028333,1730284236366,-500.0,0.00034695,5]
[341028334,1730284236375,-500.0,0.00034695,5]
[341028335,1730284236384,-620.21002746,0.00034695,5]
[341028336,1730284236394,-500.0,0.00034695,5]
[341028337,1730284236403,-500.0,0.00034695,5]
[341028338,1730284236413,-500.0,0.00034695,5]
[341028339,1730284236423,-500.0,0.00034695,5]
[341028340,1730284236432,-500.0,0.00034695,5]
[341028341,1730284236441,-500.0,0.00034695,5]
[341028342,1730284236451,-828.98423805,0.00034695,5]
[341028343,1730284236543,-500.0,0.00034695,5]
[341028344,1730284236562,-500.0,0.00034695,5]
[341028345,1730284236572,-500.0,0.00034695,5]
[341028346,1730284236581,-519.33680144,0.00034695,5]
[341028347,1730284236591,-500.0,0.00034695,5]
[341028348,1730284236600,-500.0,0.00034695,5]
[341028349,1730284236609,-500.0,0.00034695,5]
[341028350,1730284236618,-533.84397475,0.00034695,5]
[341028351,1730284236627,-500.0,0.00034695,5]
[341028352,1730284236636,-500.0,0.00034695,5]
[341028353,1730284236646,-655.94,0.00034695,5]
[341028354,1730284236655,-500.0,0.00034695,5]
[341028355,1730284236665,-775.1,0.00034695,5]
[341028356,1730284236674,-500.0,0.00034695,5]
[341028357,1730284236683,-500.0,0.00034695,5]
[341028358,1730284236693,-500.0,0.00034695,5]
[341028359,1730284236704,-500.0,0.00034695,5]
[341028360,1730284236714,-500.0,0.00034695,5]
[341028361,1730284236723,-500.0,0.00034695,5]
[341028362,1730284236733,-500.0,0.00034695,5]
[341028363,1730284236742,-500.0,0.00034695,5]
[341028364,1730284236752,-500.0,0.00034695,5]
[341028365,1730284236761,-500.0,0.00034695,5]
[341028366,1730284236771,-500.0,0.00034695,5]
[341028367,1730284236782,-500.0,0.00034695,5]
[341028368,1730284236791,-500.0,0.00034695,5]
[341028369,1730284236800,-500.0,0.00034695,5]
[341028370,1730284236810,-500.0,0.00034695,5]
[341028371,1730284236819,-500.0,0.00034695,5]
[341028372,1730284236828,-510.74383598,0.00034695,5]
[341028373,1730284236837,-500.0,0.00034695,5]
[341028374,1730284236847,-500.0,0.00034695,5]
[341028375,1730284236856,-500.0,0.00034695,5]
[341028376,1730284236865,-500.0,0.00034695,5]
[341028377,1730284236874,-500.0,0.00034695,5]
[341028378,1730284236884,-610.36279005,0.00034695,5]
[341028379,1730284236893,-500.0,0.00034695,5]
[341028380,1730284236902,-500.0,0.00034695,5]
[341028381,1730284236912,-500.0,0.00034695,5]
[341028382,1730284236921,-500.0,0.00034695,5]
[341028383,1730284236931,-532.8244185,0.00034695,5]
[341028384,1730284236940,-500.0,0.00034695,5]
[341028385,1730284236949,-500.0,0.00034695,5]
[341028386,1730284236958,-623.81398712,0.00034695,5]
[341028387,1730284236968,-500.0,0.00034695,5]
[341028388,1730284236977,-500.0,0.00034695,5]
[341028389,1730284236987,-500.0,0.00034695,5]
[341028390,1730284236996,-500.0,0.00034695,5]
[341028391,1730284237007,-500.0,0.00034695,5]
[341028392,1730284237018,-500.0,0.00034695,5]
[341028393,1730284237027,-500.0,0.00034695,5]
[341028394,1730284237037,-1000.0,0.00034695,10]
[341028395,1730284237046,-500.0,0.00034695,5]
[341028396,1730284237056,-1000.0,0.00034695,5]
[341028397,1730284237066,-500.0,0.00034695,5]
[341028398,1730284237075,-500.0,0.00034695,5]
[341028399,1730284237085,-500.0,0.00034695,5]
[341028400,1730284237095,-500.0,0.00034695,5]
[341028401,1730284237104,-500.0,0.00034695,5]
[341028402,1730284237114,-500.0,0.00034695,5]
[341028403,1730284237123,-500.0,0.00034695,5]
[341028404,1730284237132,-500.0,0.00034695,5]
[341028405,1730284237142,-500.0,0.00034695,5]
[341028406,1730284237151,-500.0,0.00034695,5]
[341028407,1730284237161,-500.0,0.00034695,5]
[341028408,1730284237170,-499.51124454,0.00034695,5]
[341028409,1730284237179,-500.0,0.00034695,5]
[341028410,1730284237189,-508.62608704,0.00034695,5]
[341028411,1730284237198,-500.0,0.00034695,5]
[341028412,1730284237210,-500.0,0.00034695,5]
[341028413,1730284237226,-500.0,0.00034695,5]
[341028414,1730284237248,-500.0,0.00034695,5]
[341028415,1730284237265,-500.0,0.00034695,5]
[341028416,1730284237285,-517.27293071,0.00034695,5]
[341028417,1730284237305,-500.0,0.00034695,5]
[341028418,1730284237323,-500.0,0.00034695,5]
[341028419,1730284237341,-500.0,0.00034695,5]
[341028420,1730284237357,-500.0,0.00034695,5]
[341028421,1730284237372,-500.0,0.00034695,5]
[341028422,1730284237390,-500.0,0.00034695,5]
[341028423,1730284237411,-500.0,0.00034695,5]
[341028424,1730284237425,-500.0,0.00034695,5]
[341028425,1730284237439,-500.0,0.00034695,5]
[341028426,1730284237458,-500.0,0.00034695,5]
[341028427,1730284237475,-500.0,0.00034695,5]
[341028428,1730284237489,-500.0,0.00034695,5]
[341028429,1730284237502,-500.0,0.00034695,5]
[341028430,1730284237521,-500.0,0.00034695,5]
[341028431,1730284237542,-430.07938667,0.00034695,5]
[341028432,1730284237620,-69.92061333,0.00034695,5]
[341028433,1730284237635,-356.68008783,0.00034695,5]
[341028476,1730284239150,-143.31991217,0.00034695,5]
[341028478,1730284239159,-320.69608783,0.00034695,5]
[341028481,1730284239175,-179.30391217,0.00034695,5]
[341028483,1730284239184,-500.0,0.00034695,5]
[341028485,1730284239194,-500.0,0.00034695,5]
[341028487,1730284239204,-500.0,0.00034695,5]
[341028488,1730284239213,-500.0,0.00034695,5]
[341028490,1730284239222,-500.0,0.00034695,5]
[341028493,1730284239236,-500.0,0.00034695,5]
[341028494,1730284239247,-595.14,0.00034695,5]
[341028496,1730284239256,-500.0,0.00034695,5]
[341028498,1730284239266,-500.0,0.00034695,5]
[341028500,1730284239277,-500.0,0.00034695,5]
[341028503,1730284239288,-500.0,0.00034695,5]
[341028505,1730284239299,-500.0,0.00034695,5]
[341028507,1730284239310,-500.0,0.00034695,5]
[341028509,1730284239320,-565.66295536,0.00034695,5]
[341028511,1730284239331,-591.54392884,0.00034695,5]
[341028513,1730284239343,-500.0,0.00034695,5]
[341028515,1730284239353,-500.0,0.00034695,5]
[341028517,1730284239362,-500.0,0.00034695,5]
[341028519,1730284239371,-169.42005215,0.00034695,5]
[341028521,1730284239381,-500.0,0.00034695,5]
[341028523,1730284239392,-500.0,0.00034695,5]
[341028525,1730284239402,-613.42314431,0.00034695,5]
[341028527,1730284239411,-500.0,0.00034695,7]
[341028529,1730284239420,-500.0,0.00034695,5]
[341028531,1730284239430,-531.98866556,0.00034695,5]
[341028533,1730284239439,-569.13607809,0.00034695,5]
[341028535,1730284239449,-500.0,0.00034695,5]
[341028537,1730284239459,-500.0,0.00034695,5]
[341028539,1730284239469,-159.68338083,0.00034695,5]
[341028541,1730284239478,-565.2019008,0.00034695,5]
[341028542,1730284239487,-500.0,0.00034695,5]
[341028544,1730284239497,-500.0,0.00034695,5]
[341028546,1730284239506,-153.528836,0.00034695,7]
[341028548,1730284239516,-519.82661486,0.00034695,5]
[341028550,1730284239526,-500.0,0.00034695,5]
[341028552,1730284239535,-500.0,0.00034695,5]
[341028554,1730284239545,-1071.91,0.00034695,5]
[341028556,1730284239554,-1314.73,0.00034695,5]
[341028558,1730284239564,-1314.73,0.00034695,5]
[341028560,1730284239574,-570.19591219,0.00034695,5]
[341028562,1730284239583,-500.0,0.00034695,5]
[341028564,1730284239593,-500.0,0.00034695,5]
[341028566,1730284239603,-500.0,0.00034695,5]
[341028568,1730284239612,-500.0,0.00034695,5]
[341028570,1730284239622,-721.58,0.00034695,5]
[341028572,1730284239631,-500.0,0.00034695,5]
[341028573,1730284239640,-187.986577,0.00034695,7]
[341028575,1730284239650,-187.986577,0.00034695,7]
[341028577,1730284239659,-500.0,0.00034695,5]
[341028579,1730284239668,-500.0,0.00034695,5]
[341028581,1730284239679,-500.0,0.00034695,5]
[341028583,1730284239688,-802.85,0.00034695,5]
[341028585,1730284239698,-1073.68,0.00034695,5]
[341028587,1730284239707,-506.10095824,0.00034695,5]
[341028589,1730284239716,-500.0,0.00034695,5]
[341028591,1730284239726,-567.70470918,0.00034695,5]
[341028593,1730284239735,-500.0,0.00034695,5]
[341028595,1730284239744,-500.0,0.00034695,5]
[341028597,1730284239754,-541.55909777,0.00034695,5]
[341028599,1730284239763,-500.0,0.00034695,5]
[341028601,1730284239773,-412.82087231,0.00034695,5]
[341028603,1730284239783,-500.0,0.00034695,5]
[341028605,1730284239793,-500.0,0.00034695,5]
[341028607,1730284239802,-500.0,0.00034695,5]
[341028609,1730284239812,-500.0,0.00034695,5]
[341028611,1730284239821,-328.19689908,0.00034695,5]
[341028612,1730284239831,-517.3935682,0.00034695,5]
[341028614,1730284239840,-390.15535189,0.00034695,5]
[341028616,1730284239850,-500.0,0.00034695,5]
[341028618,1730284239860,-301.62294289,0.00034695,5]
[341028620,1730284239869,-513.29268951,0.00034695,5]
[341028622,1730284239879,-500.0,0.00034695,5]
[341028624,1730284239889,-500.0,0.00034695,5]
[341028626,1730284239898,-500.0,0.00034695,5]
[341028628,1730284239907,-500.0,0.00034695,5]
[341028630,1730284239916,-554.15033905,0.00034695,5]
[341028632,1730284239926,-500.0,0.00034695,5]
[341028633,1730284239935,-1329.52,0.00034695,5]
[341028635,1730284239945,-500.0,0.00034695,5]
[341028637,1730284239954,-172.77086726,0.00034695,5]
[341028639,1730284239964,-500.0,0.00034695,5]
[341028641,1730284239973,-159.605526,0.00034695,7]
[341028643,1730284239983,-500.0,0.00034695,5]
[341028644,1730284239992,-500.0,0.00034695,5]
[341028646,1730284240001,-500.0,0.00034695,5]
[341028648,1730284240011,-500.0,0.00034695,5]
[341028650,1730284240020,-25322.90507919,0.00034696,2]
[341028691,1730284240729,-270.289704,0.00034695,7]
[341028692,1730284240739,-52229.710296,0.00034696,2]
[341028694,1730284240756,-3183.88860209,0.00034696,2]
[341028695,1730284240932,-270.289704,0.00034695,7]
[341028696,1730284240942,-52122.78824939,0.00034696,2]
[341028704,1730284243328,-561.1656749,0.00034595,5]
[341028705,1730284243352,-725.038344,0.00034595,5]
[341028706,1730284243505,-481.53236645,0.00034595,5]
[341028714,1730284246446,-131.55361465,0.00034595,5]
[341028715,1730284246457,-229.11530933,0.00034595,5]
[341028716,1730284246530,-612.73469067,0.00034595,5]
[341028717,1730284246540,-500.0,0.00034693,5]
[341028718,1730284246550,-500.0,0.00034693,5]
[341028719,1730284246560,-511.72,0.00034693,5]
[341028720,1730284246573,-571.74530933,0.00034693,5]
[341028721,1730284381356,300.0,0.00019725,2]
[341028722,1730284383457,198.427,0.00019059,2]
[341028723,1730284509395,5139.56728436,0.0001,2]
[341028724,1730284509421,9722.80180324,0.0001,2]
[341028725,1730284580330,550.0,0.00015,2]
[341028726,1730284581607,600.0,0.00017,2]
[341028727,1730284582521,650.0,0.00019,2]
[341028728,1730284583601,700.0,0.00021,2]
[341028729,1730284584685,750.0,0.00023,2]
[341028730,1730284669950,151.28882876,0.00017605,2]
[341028731,1730284685846,300.0,0.00019725,2]
[341028732,1730284686546,420.0,0.00021484,2]
[341028733,1730284743000,200.0,0.00023,2]
[341028735,1730284865045,156.71,0.00015342,2]
[341028736,1730285318408,150.0,0.00023,2]
[341028737,1730285356140,-949.9150992,0.00024964,2]
[341028750,1730285431639,-3287.85463,0.00025063,2]
[341028751,1730285431649,-8703.07613017,0.00025189,2]
[341028752,1730285431659,-212.2892942,0.00025189,2]
[341028753,1730285431668,-300.0,0.00025289,2]
[341028754,1730285431678,-188.78,0.0002529,2]
[341028755,1730285431687,-930.13,0.0002529,2]
[341028756,1730285431697,-150.99,0.0002529,2]
[341028757,1730285431706,-1228.11,0.0002529,2]
[341028758,1730285431715,-33592.96141578,0.0002529,2]
[341028759,1730285431728,-530.57852504,0.0002529,2]
[341028760,1730285431740,-500.0,0.000253,2]
[341028761,1730285431750,-5671.16,0.000253,2]
[341028762,1730285431759,-159.1,0.00025375,2]
[341028763,1730285431770,-200.0,0.00025396,2]
[341028764,1730285431779,-290.001,0.000268,2]
[341028765,1730285431789,-156.71,0.00027507,2]
[341028766,1730285431799,-188.78,0.00027819,2]
[341028767,1730285431808,-169.8052495,0.00027858,2]
[341028768,1730285431818,-364.0,0.000283,2]
[341028769,1730285431828,-1025.0,0.000283,2]
[341028770,1730285431838,-245.4615,0.0003,2]
[341028771,1730285431847,-245.4615,0.0003,2]
[341028772,1730285431856,-157.8505,0.0003,2]
[341028774,1730285431866,-157.8505,0.0003,2]
[341028777,1730285431876,-188.78,0.00030348,2]
[341028778,1730285431885,-150.0,0.00030374,7]
[341028780,1730285431895,-1000.0,0.00030779,2]
[341028783,1730285431905,-250.0,0.00031015,2]
[341028784,1730285431914,-250.0,0.00031106,2]
[341028785,1730285431924,-152.0,0.000312,3]
[341028786,1730285431933,-822.94,0.00031228,2]
[341028787,1730285431943,-257.48,0.00031451,2]
[341028788,1730285431954,-180.15,0.00031504,30]
[341028789,1730285431964,-227.57,0.00031545,2]
[341028790,1730285431974,-222.0,0.00031872,2]
[341028791,1730285431984,-161.78,0.00031886,2]
[341028792,1730285431993,-188.78,0.00032877,2]
[341028793,1730285432002,-257.48,0.00033024,2]
[341028794,1730285432011,-1000.0,0.0003324,2]
[341028795,1730285432021,-165.53,0.00033487,2]
[341028796,1730285432031,-822.94,0.00033492,2]
[341028797,1730285432040,-169.8052495,0.00033613,2]
[341028798,1730285432050,-500.0,0.00033613,2]
[341028799,1730285432060,-12000.0,0.0003399,2]
[341028800,1730285432069,-16203.72882252,0.0003399,3]
[341028801,1730285432078,-777.0,0.00033992,10]
[341028802,1730285432088,-600.0,0.00034,5]
[341028803,1730285432097,-24044.0,0.00034002,2]
[341028804,1730285432108,-215.03771708,0.00034374,2]
[341028805,1730285432117,-151.94768921,0.00034394,15]
[341028806,1730285432126,-206.45,0.00034446,2]
[341028807,1730285432136,-151.94768915,0.00034459,15]
[341028808,1730285432145,-306.80780257,0.00034493,2]
[341028809,1730285432155,-452.32225866,0.00034494,5]
[341028810,1730285432165,-500.0,0.00034494,5]
[341028811,1730285432174,-971.75,0.00034494,5]
[341028812,1730285432183,-500.0,0.00034494,5]
[341028813,1730285432193,-670.59,0.00034494,5]
[341028814,1730285432202,-500.0,0.00034494,5]
[341028815,1730285432212,-327.50987305,0.00034494,5]
[341028816,1730285432221,-500.0,0.00034494,5]
[341028817,1730285432230,-546.1,0.00034494,5]
[341028818,1730285432240,-500.0,0.00034494,5]
[341028819,1730285432250,-563.50823462,0.00034494,5]
[341028820,1730285432259,-1105.03,0.00034494,5]
[341028821,1730285432268,-1536.86,0.00034494,5]
[341028822,1730285432278,-500.0,0.00034494,5]
[341028823,1730285432287,-500.0,0.00034494,5]
[341028824,1730285432296,-609.95992271,0.00034494,5]
[341028825,1730285432306,-500.0,0.00034494,5]
[341028826,1730285432316,-1275.24,0.00034494,5]
[341028827,1730285432325,-500.0,0.00034494,5]
[341028828,1730285432335,-1197.93,0.00034494,5]
[341028829,1730285432344,-500.0,0.00034494,5]
[341028830,1730285432353,-807.69,0.00034494,5]
[341028831,1730285432363,-500.0,0.00034494,5]
[341028832,1730285432372,-500.0,0.00034494,5]
[341028833,1730285432382,-500.0,0.00034494,5]
[341028834,1730285432391,-854.54,0.00034494,5]
[341028835,1730285432400,-500.0,0.00034494,5]
[341028836,1730285432410,-531.49335839,0.00034494,5]
[341028837,1730285432419,-183.823881,0.00034494,5]
[341028838,1730285432429,-159.024645,0.00034494,5]
[341028839,1730285432438,-500.0,0.00034494,5]
[341028840,1730285432448,-565.68489813,0.00034494,5]
[341028841,1730285432458,-1870.21,0.00034494,5]
[341028842,1730285432467,-500.0,0.00034494,5]
[341028843,1730285432478,-1577.46,0.00034494,5]
[341028844,1730285432487,-500.0,0.00034494,5]
[341028845,1730285432496,-667.29,0.00034494,5]
[341028846,1730285432506,-777.96,0.00034494,5]
[341028847,1730285432516,-500.0,0.00034494,5]
[341028848,1730285432525,-500.0,0.00034494,5]
[341028849,1730285432534,-529.81,0.00034494,5]
[341028850,1730285432543,-500.0,0.00034494,5]
[341028851,1730285432553,-500.0,0.00034494,5]
[341028852,1730285432563,-559.01574365,0.00034494,5]
[341028853,1730285432573,-500.0,0.00034494,5]
[341028854,1730285432582,-1150.39,0.00034494,5]
[341028855,1730285432596,-200.0,0.00034494,5]
[341028856,1730285432605,-500.0,0.00034494,5]
[341028857,1730285432615,-598.19,0.00034494,5]
[341028858,1730285432624,-500.0,0.00034494,5]
[341028859,1730285432633,-500.0,0.00034494,5]
[341028860,1730285432643,-500.0,0.00034494,5]
[341028861,1730285432652,-566.65771976,0.00034494,5]
[341028862,1730285432662,-500.0,0.00034494,5]
[341028863,1730285432672,-500.0,0.00034494,5]
[341028864,1730285432681,-500.0,0.00034494,5]
[341028865,1730285432691,-500.0,0.00034494,5]
[341028866,1730285432701,-573.23,0.00034494,5]
[341028867,1730285432710,-2344.5,0.00034494,5]
[341028868,1730285432723,-500.0,0.00034494,5]
[341028869,1730285432734,-314.8386264,0.00034494,5]
[341028870,1730285432743,-500.0,0.00034494,5]
[341028871,1730285432753,-500.0,0.00034494,5]
[341028872,1730285432764,-500.0,0.00034494,5]
[341028873,1730285432774,-259.72405998,0.00034494,5]
[341028874,1730285432784,-500.0,0.00034494,5]
[341028875,1730285432794,-500.0,0.00034494,5]
[341028876,1730285432804,-500.0,0.00034494,5]
[341028877,1730285432815,-500.0,0.00034494,5]
[341028878,1730285432825,-1862.35,0.00034494,5]
[341028879,1730285432835,-500.0,0.00034494,5]
[341028880,1730285432845,-500.0,0.00034494,5]
[341028881,1730285432855,-500.0,0.00034494,5]
[341028882,1730285432865,-500.0,0.00034494,5]
[341028883,1730285432875,-500.0,0.00034494,5]
[341028884,1730285432885,-545.4,0.00034494,5]
[341028885,1730285432895,-500.0,0.00034494,5]
[341028886,1730285432905,-500.0,0.00034494,5]
[341028887,1730285432915,-822.07,0.00034494,5]
[341028888,1730285432925,-500.0,0.00034494,5]
[341028889,1730285432935,-1691.41,0.00034494,5]
[341028890,1730285432948,-500.0,0.00034494,5]
[341028891,1730285432958,-610.83,0.00034494,5]
[341028892,1730285432968,-583.51,0.00034494,5]